Cogmind - Beta 16 @@@ ROGUE MODE // 2025.12.12 @ 05:55:40 Player: shapeshifter Result: Core destroyed Performance ------------- Evolutions (7) 3500 Regions Visited (24) 4800 Robots Destroyed (270) 1350 Value Destroyed (10888) 10888 Prototype IDs (81) 1620 Alien Tech Used (2) 400 Bonus (8023) 8023 TOTAL SCORE: 30581 Bonus ------- Triggered High Security 1000 High Alert Combat Kills 3383 Follower Combat Kills 4857 Network Hubs Disabled 600 Aligned with FarCom 300 Met Zhirov 300 Built Enhanced Grunts 300 Met R17 at Cetus 500 Found Hidden Lab 3000 Friendly Fire -6217 Cogmind --------- Core Integrity 0/1300 Matter 19/300 Energy 600/600 System Corruption 56% Temperature Cool (0) Movement Core (50) Location -3/Lab Parts ------- > --- POWER (2) -------- (None) > --- PROPULSION (7) --- Impulse Thruster Array > --- UTILITY (8) ------ Advanced Energy Well Hacking Suite > --- WEAPON (4) ------- (None) > --- INVENTORY (5) ---- AEGIS Remote Shield Quantum Router Core Reset Matrix Tachyon Dispersion Ray IN-MT5's Pitchfork "Insurrection" (14) Peak State ------------ > --- POWER ------------ Light Quantum Reactor Light Quantum Reactor > --- PROPULSION ------- Advanced Heavy Siege Treads Centrium Leg Heavy Shield Leg Cooled Nuclear Pulse Thruster Cooled Nuclear Pulse Thruster > --- UTILITY ---------- Advanced Heat Sink Advanced Energy Well 0b10 Decoder Chip [Skirmisher] Experimental EM Shield Hacking Suite Hacking Suite Authchip [Weapon] Tech Extrapolator > --- WEAPON ----------- Enhanced Nova Cannon Hypervelocity Railgun Enhanced Hardcell Cannon Enhanced Hardcell Cannon > --- INVENTORY -------- Huge Storage Unit Authchip [Weapon] Transdimensional Reconstructor Latent Energy Streamer IN-MT5's Pitchfork "Insurrection" [Rating: 159] Favorites ----------- Power Improved Deuterium Engine Engine Improved Deuterium Engine Power Core Neutrino Core Reactor Light Quantum Reactor Propulsion Armored Treads Treads Armored Treads Leg Centrium Leg Hover Unit Improved Linear Gravjet Flight Unit Nuclear Pulse Array Utility Huge Storage Unit Device Advanced Heat Sink Storage Huge Storage Unit Processor Tech Extrapolator Hackware Hacking Suite Protection Medium Reactive Plating Weapon Gauss Rifle Energy Gun Improved Spread Laser Energy Cannon Long-range Proton Cannon Ballistic Gun Gauss Rifle Ballistic Cannon Enhanced Hardcell Cannon Launcher Rocket Array Special Weapon Remote Datajack Impact Weapon Powered Hammer Slashing Weapon Makeshift Axe Special Melee Weapon Datajack Build | -11 -10 -10 -10 -9 -8 -7 -7 -7 -7 -5 -5 -5 -5 -5 -5 -5 -4 -4 -4 -4 -3 -3 -3 -3 ------- Run | Yrd Mat Min Exi Min Mat Fac Sto Rec Scr Fac Was Fac Ext Cet Arc Hub Fac Upp Upp Zhi Pro Res Arm Lab Slots Evolved 14 | . . . . . 4 2 . . . 4 . . . . . . 2 . . . . 2 . . Power 1 | . . . . . . . . . . . . . . . . . . . . . . 1 . . Propulsion 5 | . . . . . 1 1 . . . 2 . . . . . . 1 . . . . . . . Utility 6 | . . . . . 2 . . . . 2 . . . . . . 1 . . . . 1 . . Weapon 2 | . . . . . 1 1 . . . . . . . . . . . . . . . . . . Parts Attached 201 | 7 6 1 2 . 18 15 23 5 12 25 5 7 1 8 6 2 15 7 2 6 3 2 20 3 Power 20 | 1 1 . . . 1 1 2 . 1 2 1 1 . . 1 . 2 1 1 . . . 4 . Engine 9 | 1 1 . . . 1 1 2 . 1 . . 1 . . 1 . . . . . . . . . Core 5 | . . . . . . . . . . 2 . . . . . . 1 1 1 . . . . . Reactor 6 | . . . . . . . . . . . 1 . . . . . 1 . . . . . 4 . Propulsion 44 | 2 1 1 . . 5 3 7 . 4 3 . 1 . . . . 3 3 1 3 . 1 6 . Treads 18 | 2 1 1 . . 5 3 3 . 2 . . . . . . . . . . . . . 1 . Leg 2 | . . . . . . . . . . . . . . . . . . . . . . . 2 . Wheel . | . . . . . . . . . . . . . . . . . . . . . . . . . Hover 5 | . . . . . . . 2 . . . . . . . . . 3 . . . . . . . Flight 19 | . . . . . . . 2 . 2 3 . 1 . . . . . 3 1 3 . 1 3 . Utility 70 | 2 2 . 1 . 7 5 7 4 3 12 2 2 1 3 4 1 4 2 . 3 1 1 3 . Device 29 | 1 1 . . . 3 3 4 2 1 5 1 1 1 . 1 1 1 1 . 1 1 . . . Storage 10 | 1 1 . 1 . 1 . 1 . . 3 . . . . . . . . . 1 . . 1 . Processor 7 | . . . . . . 1 . . 1 2 . . . . . . 1 1 . . . 1 . . Hackware 13 | . . . . . . . . 1 . 2 . 1 . 1 3 . 2 . . 1 . . 2 . Protection 11 | . . . . . 3 1 2 1 1 . 1 . . 2 . . . . . . . . . . Artifact . | . . . . . . . . . . . . . . . . . . . . . . . . . Weapon 67 | 2 2 . 1 . 5 6 7 1 4 8 2 3 . 5 1 1 6 1 . . 2 . 7 3 Energy Gun 9 | . . . . . 1 . 1 . . 2 1 1 . . . . . . . . 1 . . 2 Energy Cannon 5 | . . . . . . . . . 1 1 . . . . . . 2 . . . . . 1 . Ballistic Gun 30 | 2 2 . . . 3 5 2 1 . 3 . . . 5 1 1 . . . . 1 . 4 . Ballistic Cannon 6 | . . . . . . . 1 . 1 . . . . . . . 2 . . . . . 2 . Launcher 6 | . . . . . 1 1 1 . . 1 1 . . . . . 1 . . . . . . . Special Weapon 7 | . . . . . . . 2 . 2 1 . . . . . . 1 . . . . . . 1 Impact Weapon 1 | . . . . . . . . . . . . 1 . . . . . . . . . . . . Slashing Weapon 1 | . . . . . . . . . . . . . . . . . . 1 . . . . . . Piercing Weapon . | . . . . . . . . . . . . . . . . . . . . . . . . . Special Melee Weapon 2 | . . . 1 . . . . . . . . 1 . . . . . . . . . . . . Unidentified Prototypes 31 | . 1 . . . 3 2 7 . . 3 2 1 . 2 . 1 3 . . 4 . . 1 1 Corrupted Parts 2 | . . . . . . . . . . 2 . . . . . . . . . . . . . . System Corruption 2 | . . . . . . . . . . 2 . . . . . . . . . . . . . . Parts Lost 52 | . 1 . . . 1 1 7 2 9 . . . 1 . . 1 10 1 5 . . 1 9 3 Power 6 | . . . . . . . 1 . 1 . . . . . . . 1 . 1 . . . 2 . Propulsion 18 | . 1 . . . . 1 3 . 2 . . . . . . . 4 . 2 . . 1 3 1 Utility 17 | . . . . . . . . 2 3 . . . 1 . . 1 3 1 1 . . . 3 2 Weapon 11 | . . . . . 1 . 3 . 3 . . . . . . . 2 . 1 . . . 1 . Highest Loss Streak 9 | . 1 . . . 1 1 2 1 9 . . . 1 . . 1 5 1 5 . . 1 9 3 To Critical Strikes 1 | . . . . . . 1 . . . . . . . . . . . . . . . . . . Average Backups 18 | 2 14 20 19 19 21 24 24 24 22 7 14 10 9 9 10 9 8 4 5 4 5 5 5 2 Power 1 | . . . . . 2 2 1 2 1 . 1 1 1 1 1 1 . . . . . . . . Propulsion 2 | . . . . . 2 2 3 6 5 . . . . . . . . . . . . . . . Utility 8 | . 8 11 11 11 9 12 10 10 8 2 6 3 3 2 2 2 3 1 2 1 1 2 1 . Weapon 5 | . 4 8 7 6 5 4 5 5 5 4 6 6 4 5 6 5 4 3 3 3 2 2 2 1 Tool/Special . | . . . . . . . . . . . . . . . . . . . . . . . . . Unused Backups 65 | . 4 1 5 3 11 9 6 1 9 . 1 3 1 1 . . 2 1 . . 1 . 2 4 Power 2 | . . . . . 1 . . . 1 . . . . . . . . . . . . . . . Propulsion 2 | . . . . . 1 . . . 1 . . . . . . . . . . . . . . . Utility 41 | . 1 1 3 1 5 6 6 1 6 . 1 3 . 1 . . 1 1 . . 1 . . 3 Weapon 17 | . 2 . 2 2 3 3 . . 1 . . . 1 . . . 1 . . . . . 2 . Tool/Special 3 | . 1 . . . 1 . . . . . . . . . . . . . . . . . . 1 Average Slot Usage (%) 91 | . 93 100 100 100 99 99 99 96 90 59 83 83 79 79 77 78 63 34 33 50 79 73 81 27 Engine 7 | . 14 14 14 14 9 7 6 7 6 . . 1 5 5 5 5 1 . . . . . . . Treads 20 | . 22 28 28 28 26 29 29 30 27 . . . . . . . . . . . . . 3 . Flight 4 | . . . . . . . . . 2 21 23 20 17 17 17 17 6 4 10 18 26 21 10 8 Device 13 | . 13 14 14 14 17 14 15 11 15 10 15 15 14 11 8 9 9 . . 5 12 14 7 . Storage 7 | . 14 14 14 14 9 7 7 7 6 2 5 5 5 5 5 5 4 . . 2 2 . 4 4 Processor 1 | . . . . . . . . . . 8 11 6 5 5 5 5 5 9 10 10 10 11 10 8 Hackware 2 | . . . . . . . . 1 . . . 3 5 5 12 12 14 13 6 7 10 9 11 4 Protection 4 | . . . . . 9 7 7 7 6 . 1 . . 4 1 . . . . . . . . . Energy Gun 1 | . . . . . . . . . . 1 11 14 17 5 . . . . . . 2 4 . . Ballistic Gun 21 | . 27 28 21 28 26 29 28 24 10 3 6 2 . 13 18 19 9 . . . 4 1 7 . Special Weapon 1 | . . . . . . . . 3 11 . . . . . . . . . . . . . . . Peak Build Rating 159 | 7 14 14 15 15 38 55 58 54 52 89 93 91 90 113 113 108 121 40 36 75 91 96 159 67 Average Rating 51 | 4 10 14 13 14 32 47 55 49 45 62 86 87 88 103 103 104 80 31 25 50 88 90 139 54 On Entrance 52 | . 7 14 14 15 15 37 55 45 39 14 78 89 90 87 113 100 100 28 36 25 75 91 96 57 Avg Prop Armor Cover (%) 5 | . . . . . . . . . . 5 . . 4 . . . 3 . . . . . 10 . Naked Turns . | . . . . . . . . . . . . . . . . . . . . . . . . . Heaviest Build 142 | 14 52 52 52 52 113 118 134 130 116 55 61 61 40 54 54 45 45 8 8 14 26 26 142 9 Greatest Support 94 | 40 40 40 40 40 62 82 91 91 94 42 42 45 45 45 45 45 45 12 12 26 35 30 90 32 Greatest Overweight (x) 3 | . 2 1 1 1 2 1 1 1 1 1 1 1 1 1 1 . 3 1 . . . . 1 . Average Overweight (x) . | . . 1 1 1 . 1 1 1 . . . . . . . . . . . . . . . . Largest Inventory Capacity 25 | 8 20 20 20 20 25 25 25 25 25 15 15 15 10 10 10 10 10 5 5 5 5 5 25 5 Average Capacity 19 | 7 17 20 20 20 23 25 25 25 23 7 15 10 10 10 10 10 9 5 5 5 5 5 12 5 Most Carried 25 | 5 20 20 20 20 25 25 25 25 25 15 15 15 10 10 10 10 10 5 5 5 5 5 9 5 Average Carried 18 | 2 14 19 19 19 21 24 24 24 22 7 14 10 9 9 9 9 9 4 5 4 4 5 5 2 Final Capacity 25 | 8 20 20 20 20 25 25 25 25 5 15 15 10 10 10 10 10 5 5 5 5 5 5 5 5 Final Carried 25 | 2 20 20 20 20 24 25 25 25 5 15 15 10 10 10 10 10 5 5 5 5 5 5 4 5 Class Distribution -------------------- 31% | Tank 21% | Mutant 11% | Commander-Tank 11% | Commander-Skirmisher 9% | Scavenger-Tank 3% | Sprinter Dominant Class ---------------- Mutant | -10/Materials Mutant | -10/Mines Mutant | -10/Exiles Mutant | -9/Mines Tank | -8/Materials Tank | -7/Factory Tank | -7/Storage Commander-Tank | -7/Recycling Commander-Tank | -7/Scraptown Sprinter | -5/Factory Sprinter | -5/Waste Scavenger-Sprinter | -5/Factory Commander-Skirmisher | -5/Extension Commander-Skirmisher | -5/Cetus Commander-Skirmisher | -5/Archives Scavenger-Skirmisher | -5/Hub_04(d) Hacker-Mutant | -4/Factory Hacker-Mutant | -4/Upper Caves Scavenger-Sprinter | -4/Upper Caves Scavenger-Sprinter | -4/Zhirov Scavenger-Sprinter | -3/Proximity Caves Scavenger-Sprinter | -3/Research Hacker-Tank | -3/Armory Mutant | -3/Lab Resources | -11 -10 -10 -10 -9 -8 -7 -7 -7 -7 -5 -5 -5 -5 -5 -5 -5 -4 -4 -4 -4 -3 -3 -3 -3 ----------- Run | Yrd Mat Min Exi Min Mat Fac Sto Rec Scr Fac Was Fac Ext Cet Arc Hub Fac Upp Upp Zhi Pro Res Arm Lab Matter Collected 13309 | 302 498 117 70 6 922 1371 4000 840 280 336 558 76 510 668 484 494 946 269 20 . 120 . 422 . Remotely 179 | . . . . . . . 179 . . . . . . . . . . . . . . . . . Salvage Created 10799 | 115 401 89 . . 1146 1211 3706 184 . 217 1099 . 368 244 350 489 730 146 . . . 30 274 . Parts 482 | 5 22 1 . . 61 61 198 9 . 3 1 . 10 7 30 19 25 5 . . . 1 24 . Haulers Intercepted 16 | . 2 . . . 4 1 6 . . 1 . . 2 . . . . . . . . . . . Recyclers Shooed 6 | . . . . . 1 . 2 . . 1 . . . . . 1 1 . . . . . . . Parts Field Recycled . | . . . . . . . . . . . . . . . . . . . . . . . . . Retrieved Matter . | . . . . . . . . . . . . . . . . . . . . . . . . . Parts Self-Destructed 12 | . . . . . . . . . . . . . . . . . . 5 4 . 3 . . . Prevented 1 | . . . . . . . . . . . . . . . . . . . . . 1 . . . Parts Restored . | . . . . . . . . . . . . . . . . . . . . . . . . . Kills | -11 -10 -10 -10 -9 -8 -7 -7 -7 -7 -5 -5 -5 -5 -5 -5 -5 -4 -4 -4 -4 -3 -3 -3 -3 ------- Run | Yrd Mat Min Exi Min Mat Fac Sto Rec Scr Fac Was Fac Ext Cet Arc Hub Fac Upp Upp Zhi Pro Res Arm Lab Combat Hostiles Destroyed 187 | . 8 2 . . 14 22 94 3 . 1 6 . 5 1 1 7 16 3 . . . . 4 . Melee 3 | . . . . . . . . . . . . . . . . . . 3 . . . . . . Guns 114 | . 8 2 . . 14 22 41 3 . . . . 5 1 1 6 7 . . . . . 4 . Cannons 1 | . . . . . . . . . . 1 . . . . . . . . . . . . . . AOE 69 | . . . . . . . 53 . . . 6 . . . . 1 9 . . . . . . . Classes Destroyed 19 | 2 5 . . . 2 6 3 . . . 1 . . . . . . . . . . . . . Worker 15 | . . . . . . 4 6 . . . . . . 3 . 1 . . . . . 1 . . Builder 15 | . . . . . 1 . 13 . . . . . . . . 1 . . . . . . . . Tunneler 1 | 1 . . . . . . . . . . . . . . . . . . . . . . . . Hauler 16 | . 2 . . . 4 1 6 . . 1 . . 2 . . . . . . . . . . . Recycler 5 | 1 . . . . 2 . 2 . . . . . . . . . . . . . . . . . Mechanic 2 | . . . . . . . 2 . . . . . . . . . . . . . . . . . Operator 12 | . 1 . . . . 1 1 . . . . . . . 8 . 1 . . . . . . . Watcher 15 | . 1 . . . 5 3 2 . . 1 . . 1 . . 2 . . . . . . . . Swarmer 11 | . 3 . . . . 3 . . . . . . 1 . . 1 . 3 . . . . . . Grunt 93 | . 5 2 . . 10 10 45 1 . 1 . . 1 1 . 5 12 . . . . . . . Brawler 14 | . . . . . . 1 12 . . . . . . . . 1 . . . . . . . . Duelist 7 | . . . . . . 1 6 . . . . . . . . . . . . . . . . . Protector 7 | . . . . . . . 7 . . . . . . . . . . . . . . . . . Sentry 21 | . . . . . 4 . 10 1 . . . . 3 . 1 . 2 . . . . . . . Demolisher 2 | . . . . . . 1 1 . . . . . . . . . . . . . . . . . Specialist 2 | . . . . . . . 2 . . . . . . . . . . . . . . . . . Hunter 3 | . . . . . . 2 1 . . . . . . . . . . . . . . . . . Programmer 21 | . . . . . . 4 10 1 . . . . . . . . 2 . . . . . 4 . Compactor 6 | . . . . . . . . . . . 6 . . . . . . . . . . . . . Thug 1 | . . . . . . . . . . . . . . 1 . . . . . . . . . . Best Kill Streak 24 | 2 4 2 . . 4 5 24 2 . 2 5 . 2 1 2 4 4 1 . . . 1 2 . Combat Bots Only 22 | . 3 2 . . 3 4 22 2 . 1 5 . 2 1 1 3 3 1 . . . . 2 . Max Kills in Single Turn 9 | 1 1 1 . . 1 2 9 2 . 1 2 . 1 1 1 2 2 1 . . . 1 1 . Gunslinging 1 | . . . . . . 1 1 . . . . . . . . . . . . . . . . . Exploded 9 | . . . . . . . 9 . . . 2 . . . . 1 2 . . . . . . . Melee 1 | . . . . . . . . . . . . . . . . . . 1 . . . . . . Uniques/NPCs Destroyed 1 | . . . . . . . . . . . . . . 1 . . . . . . . . . . A7 (-5/Cetus) Combat | -11 -10 -10 -10 -9 -8 -7 -7 -7 -7 -5 -5 -5 -5 -5 -5 -5 -4 -4 -4 -4 -3 -3 -3 -3 -------- Run | Yrd Mat Min Exi Min Mat Fac Sto Rec Scr Fac Was Fac Ext Cet Arc Hub Fac Upp Upp Zhi Pro Res Arm Lab Hostile Shots Fired 1227 | . 56 7 . . 85 111 437 60 100 8 1 . 25 1 1 34 97 32 30 . 16 2 124 . Missed 451 | . 14 2 . . 29 34 164 20 54 5 1 . 10 . . 17 34 11 11 . 9 1 35 . Hits 776 | . 42 5 . . 56 77 273 40 46 3 . . 15 1 1 17 63 21 19 . 7 1 89 . Melee 9 | . . . . . . 3 3 . 1 . . . . . . 2 . . . . . . . . Projectile 767 | . 42 5 . . 56 74 270 40 45 3 . . 15 1 1 15 63 21 19 . 7 1 89 . AOE 14 | . . . . . . 2 12 . . . . . . . . . . . . . . . . . Critical Strikes 42 | . . . . . . 6 13 . 4 . . . 2 . . 1 3 1 . . . . 12 . Part Disruptions 3 | . . . . . . . 1 . . . . . . . . . . . . . . . 2 . Damage Taken 11975 | . 483 70 . . 633 927 2449 238 670 44 14 13 334 206 26 429 1530 302 306 . 133 45 2109 1014 Core 2935 | . 85 32 . . 60 82 193 33 162 15 . . . 67 . 57 441 263 163 . 22 1 409 850 Absorbed by Shields 1797 | . . . . . 237 354 864 101 83 15 5 5 121 12 . . . . . . . . . . Ignored by Resistances 352 | . . . . . 42 8 217 16 . . . . . . . . . . . . . . 69 . Regen/Repaired (Parts) 102 | . . . . . . . . . . . 27 . 32 43 . . . . . . . . . . Core Remaining (%) 63 | 100 . . . 53 89 . . . 32 . . . . . . 86 . . . . 22 . . . Volleys Fired 640 | 8 48 6 . 1 70 76 178 30 3 27 15 2 23 26 20 31 50 . . . 1 1 24 . Largest 4 | 2 2 2 . 2 3 4 4 4 1 1 2 3 3 4 4 4 4 . . . 1 1 4 . Hottest 236 | 40 46 46 . 46 69 112 112 101 40 81 150 225 225 225 140 140 140 . . . 49 49 236 . Shots Fired 1893 | 16 96 12 . 2 209 306 582 57 3 27 17 7 69 101 75 108 128 . . . 1 1 76 . Gun 1776 | 16 96 12 . 2 209 306 560 36 . 3 4 7 69 101 75 107 113 . . . . . 60 . Cannon 43 | . . . . . . . . . 3 24 . . . . . . . . . . . . 16 . Launcher 53 | . . . . . . . 22 . . . 13 . . . . 1 15 . . . 1 1 . . Special 21 | . . . . . . . . 21 . . . . . . . . . . . . . . . . Kinetic 1696 | 16 96 12 . 2 209 306 560 36 3 . . 1 . 95 75 107 113 . . . . . 65 . Thermal 99 | . . . . . . . . . . 3 4 6 69 6 . . . . . . . . 11 . Explosive 51 | . . . . . . . 22 . . . 13 . . . . 1 15 . . . . . . . Electromagnetic 26 | . . . . . . . . . . 24 . . . . . . . . . . 1 1 . . Robot Hit Streak 28 | 5 8 4 . . 28 13 13 17 . 9 14 4 18 10 7 6 19 . . . . 2 11 . Robot Miss Streak 7 | 3 5 2 . . 7 5 6 2 . 5 4 7 5 4 2 3 4 . . . . . 5 . Penetration Max 1 | . . . . . . 1 1 1 . . . . . 1 1 1 . . . . . . . . Secondary Targets 29 | . 2 . . . 5 5 9 . . . . . 3 . . 1 3 . . . . . 1 . Max Gunslinging Chain 1 | . 1 . . . 1 1 1 . . . . . 1 . . 1 1 . . . . . 1 . Shots Hit Robots 1133 | 9 52 8 4 . 151 179 322 44 . 9 17 7 68 63 32 53 62 10 2 . . 1 40 . Core Hits 895 | 4 21 4 . . 59 72 441 6 . 12 21 4 92 40 20 31 53 4 . . . 1 10 . Critical Kills 16 | . . . . . . . 2 . . . . . . . 3 4 5 . . . . . 2 . Critical Parts Destroyed 34 | . . . . . . 2 2 . . . . . . 10 3 5 8 . . . . . 4 . Critical Strikes 58 | . . . . . 1 2 4 . . . . . . 14 6 9 13 3 . . . . 6 . Destroy 55 | . . . . . 1 2 4 . . . . . . 14 6 9 13 . . . . . 6 . Sever 3 | . . . . . . . . . . . . . . . . . . 3 . . . . . . Melee Attacks 30 | . . . 4 . . . . . . . . 1 1 . . . . 18 6 . . . . . Impact 1 | . . . . . . . . . . . . . 1 . . . . . . . . . . . Slashing 24 | . . . . . . . . . . . . . . . . . . 18 6 . . . . . Piercing . | . . . . . . . . . . . . . . . . . . . . . . . . . Sneak Attacks 5 | . . . 4 . . . . . . . . 1 . . . . . . . . . . . . Combat Hostiles . | . . . . . . . . . . . . . . . . . . . . . . . . . Follow-up Attacks . | . . . . . . . . . . . . . . . . . . . . . . . . . Damage Inflicted 40164 | 91 747 120 . . 2245 3262 16357 546 5 337 3577 99 1656 2712 1065 2355 3601 439 75 . 83 96 488 208 Guns 22419 | 91 747 120 . . 2245 3254 6323 546 . 97 123 99 1615 2712 1065 1807 1272 . . . . . 303 . Cannons 425 | . . . . . . . . . . 240 . . . . . . . . . . . . 185 . Explosions 16546 | . . . . . . 8 10034 . . . 3454 . . . . 548 2323 . . . 83 96 . . Melee 555 | . . . . . . . . . . . . . 41 . . . . 439 75 . . . . . Ramming 219 | . . . . . . . . . 5 . . . . . . . 6 . . . . . . 208 Kinetic 20475 | 91 747 120 . . 2245 3254 6323 546 . . . . . 2621 1065 1807 1272 . . . . . 384 . Thermal 2129 | . . . . . . . . . . 97 123 99 1615 91 . . . . . . . . 104 . Explosive 16096 | . . . . . . . 10034 . . . 3454 . . . . 285 2323 . . . . . . . Electromagnetic 690 | . . . . . . 8 . . . 240 . . . . . 263 . . . . 83 96 . . Impact 41 | . . . . . . . . . . . . . 41 . . . . . . . . . . . Slashing 514 | . . . . . . . . . . . . . . . . . . 439 75 . . . . . Piercing . | . . . . . . . . . . . . . . . . . . . . . . . . . Highest Corruption 56 | . . . . . 2 7 12 12 12 2 2 2 2 2 2 1 1 1 1 1 1 . 23 56 Average Corruption 6 | . . . . . 2 3 9 12 12 1 2 2 2 2 1 1 1 1 1 1 1 . 6 25 Corruption Purged 2 | . . . . . . . . . . . . . . . 2 . . . . . . . . . Corruption Blocked . | . . . . . . . . . . . . . . . . . . . . . . . . . Effects 360 | . . . . . 9 22 202 63 . 8 5 4 16 8 5 . . . . 1 . . 8 9 Message Errors 87 | . . . . . . 3 55 15 . 2 1 2 2 1 1 . . . . . . . 1 4 Matter Fused 99 | . . . . . 3 6 53 14 . 4 2 1 7 2 2 . . . . . . . 4 1 Heat Flow Errors 33 | . . . . . 1 1 17 9 . . . . 3 2 . . . . . . . . . . Energy Discharges 43 | . . . . . 1 5 26 6 . . 1 . 2 . 1 . . . . . . . . 1 Parts Rejected 2 | . . . . . . . 1 . . . . . . . . . . . . . . . 1 . Parts Fused 1 | . . . . . . . 1 . . . . . . . . . . . . . . . . . Data Loss (minor) 41 | . . . . . 3 2 23 7 . 1 1 . 2 1 . . . . . 1 . . . . Data Loss (major) 20 | . . . . . 1 1 9 4 . 1 . . . 1 . . . . . . . . . 3 Misfires 16 | . . . . . . 3 6 5 . . . 1 . . 1 . . . . . . . . . Alerts 5 | . . . . . . . 2 2 . . . . . . . . . . . . . . 1 . Weapon Failures 13 | . . . . . . 1 9 1 . . . . . 1 . . . . . . . . 1 . Overload Shots . | . . . . . . . . . . . . . . . . . . . . . . . . . Overflow Damage 111 | . . . . . . . 12 . . . . . . . . 15 65 15 . . . 4 . . Projectiles . | . . . . . . . . . . . . . . . . . . . . . . . . . Explosions 96 | . . . . . . . 12 . . . . . . . . 15 65 . . . . 4 . . Melee 15 | . . . . . . . . . . . . . . . . . . 15 . . . . . . Knockbacks 2 | . . . . . . . . . . . . . . . . . . . . . . . 2 . Impact . | . . . . . . . . . . . . . . . . . . . . . . . . . Kinetic 2 | . . . . . . . . . . . . . . . . . . . . . . . 2 . Secondary . | . . . . . . . . . . . . . . . . . . . . . . . . . Self-Inflicted Damage 674 | . . . . . . 20 107 . 2 . 19 . . . . 76 220 . . . . 22 . 208 Shots 20 | . . . . . . 1 7 . . . 1 . . . . 1 9 . . . . 1 . . Rammed 4 | . . . . . . . . . 1 . . . . . . . 3 . . . . . . . Targets Rammed 4 | . . . . . . . . . 1 . . . . . . . 3 . . . . . . . Kicked . | . . . . . . . . . . . . . . . . . . . . . . . . . Crushed . | . . . . . . . . . . . . . . . . . . . . . . . . . Highest Temperature 356 | . 18 4 . . 218 113 258 215 28 166 86 140 356 281 60 110 108 . . . 15 . 99 . Average Temperature 61 | . 7 3 . . 49 18 79 68 15 50 45 51 128 65 29 36 40 . . . 15 . 58 . Received Heat Transfer 2239 | . 228 42 . . 306 146 736 44 260 18 . . 65 9 . 111 262 . . . 12 . . . Siege Activations . | . . . . . . . . . . . . . . . . . . . . . . . . . Martial Activations . | . . . . . . . . . . . . . . . . . . . . . . . . . Shielding Activations . | . . . . . . . . . . . . . . . . . . . . . . . . . Robots Disrupted . | . . . . . . . . . . . . . . . . . . . . . . . . . Combat Hostiles . | . . . . . . . . . . . . . . . . . . . . . . . . . Robots Corrupted 1 | . . . . . . . . . . 1 . . . . . . . . . . . . . . Combat Hostiles . | . . . . . . . . . . . . . . . . . . . . . . . . . Parts Fried 4 | . . . . . . . . . . 3 . . . . . 1 . . . . . . . . Impact Corruptions . | . . . . . . . . . . . . . . . . . . . . . . . . . Robots Melted . | . . . . . . . . . . . . . . . . . . . . . . . . . Combat Hostiles . | . . . . . . . . . . . . . . . . . . . . . . . . . Parts Melted 1 | . . . . . . . 1 . . . . . . . . . . . . . . . . . Heat Transferred 1836 | . . . . . . . . . . 80 105 80 1348 75 . . . . . . . . 148 . Parts Sabotaged . | . . . . . . . . . . . . . . . . . . . . . . . . . Parts Stolen . | . . . . . . . . . . . . . . . . . . . . . . . . . Parts Stripped . | . . . . . . . . . . . . . . . . . . . . . . . . . Power Chain Reactions . | . . . . . . . . . . . . . . . . . . . . . . . . . Alert | -11 -10 -10 -10 -9 -8 -7 -7 -7 -7 -5 -5 -5 -5 -5 -5 -5 -4 -4 -4 -4 -3 -3 -3 -3 ------- Run | Yrd Mat Min Exi Min Mat Fac Sto Rec Scr Fac Was Fac Ext Cet Arc Hub Fac Upp Upp Zhi Pro Res Arm Lab Maximum Alert Level 5 | . . . . . . 2 5 4 . . . 1 4 4 2 5 4 . . . . . . . Low Security (%) 46 | 100 100 100 . 100 100 48 11 . . 100 100 50 2 . . 20 . . . . . 100 100 . Level 1 10 | . . . . . . 42 12 . . . . 49 11 . 18 6 . . . . . . . . Level 2 16 | . . . . . . 8 35 . . . . . 42 . 81 14 6 . . . . . . . Level 3 19 | . . . . . . . 26 98 . . . . 23 85 . 12 38 . . . . . . . Level 4 6 | . . . . . . . 7 1 . . . . 20 14 . 34 55 . . . . . . . Level 5 . | . . . . . . . . . . . . . . . . 5 . . . . . . . . High Security 1 | . . . . . . . 5 . . . . . . . . 6 . . . . . . . . Max Security . | . . . . . . . . . . . . . . . . . . . . . . . . . Sterilizations 1 | . . . . . . . 1 . . . . . . . . . . . . . . . . . Peak Influence 2075 | 10 93 57 . . 131 453 2075 1100 . 125 74 245 1323 1138 575 1758 1305 . . . . 15 89 . Initial 1100 | . . . . . . 42 196 1100 . . 30 . 95 738 388 120 1100 . . . . 13 . . Average 429 | . 19 4 . . 48 208 731 930 . 39 18 120 707 1025 478 929 1039 . . . . 4 32 . Influence Increases 12801 | 10 265 65 . . 556 983 2959 333 6 290 124 285 2092 544 351 2358 1079 192 15 . 30 20 244 . Destroy 0b10 Robot/C 5800 | . 160 40 . . 380 540 1780 100 . 140 . 100 960 240 80 740 320 100 . . . . 120 . Destroy 0b10 Robot/NC 505 | 10 20 . . . 60 60 195 5 5 10 . 5 25 10 40 45 5 5 . . . 5 . . Destroy Leader 1086 | . 56 10 . . 88 168 386 . . 24 . 10 86 10 . 158 50 10 . . . . 30 . Allied During Kill 2394 | . . . . . 16 27 161 18 1 29 . 115 865 260 120 774 . 2 . . . . 6 . Successful Hack 203 | . 12 . . . 8 31 8 17 . 12 . 21 18 . . . 70 . . . . . 6 . Select Force Hacks 250 | . . . . . . . . 150 . . . . . . . 100 . . . . . . . . Disable Machine 765 | . . 15 . . . 120 165 15 . 60 . 30 . . 75 120 120 . . . . . 45 . Destroy Structure 1258 | . 2 . . . 4 7 219 28 . . 124 4 108 24 36 286 394 . . . . . 22 . Partial Spotted 90 | . . . . . . 15 15 . . . . . 15 . . 15 15 . . . . . 15 . Lose Combat Pursuer 450 | . 15 . . . . 15 30 . . 15 . . 15 . . 120 105 75 15 . 30 15 . . Influence Decreases 13367 | 10 265 65 . . 462 644 1317 1853 853 204 210 90 968 891 978 1015 1762 644 288 554 10 40 244 . Entered New Map 6004 | . . . . . . 52 237 1267 847 . 56 . 100 581 584 225 862 474 158 554 . 7 . . Time Decay 4951 | 10 255 65 . . 402 532 770 546 . 124 114 90 478 270 374 160 310 140 80 . 10 15 206 . Lost Part 331 | . 10 . . . . 10 70 20 . . . . 10 . . 10 100 10 50 . . 3 38 . Lost Ally 1631 | . . . . . 60 50 240 20 6 80 40 . 380 40 20 620 40 20 . . . 15 . . Purge Threat 450 | . . . . . . . . . . . . . . . . . 450 . . . . . . . Squads Dispatched 76 | . 4 . . . 1 16 28 . . 2 . . 3 1 . 15 3 . . . . . 3 . Investigation 13 | . . . . . . 3 2 . . . . . 1 1 . 3 2 . . . . . 1 . Extermination 19 | . . . . . . 4 10 . . 1 . . . . . 1 1 . . . . . 2 . Reinforcement 19 | . 4 . . . 1 2 5 . . 1 . . . . . 6 . . . . . . . . Assault 16 | . . . . . . . 11 . . . . . 2 . . 3 . . . . . . . . Garrison 9 | . . . . . . 7 . . . . . . . . . 2 . . . . . . . . Intercept . | . . . . . . . . . . . . . . . . . . . . . . . . . Searches Triggered . | . . . . . . . . . . . . . . . . . . . . . . . . . Construction Impeded 4 | . . . . . 1 . 3 . . . . . . . . . . . . . . . . . Haulers Reinforced 2 | . . . . . . 1 . . . 1 . . . . . . . . . . . . . . Active Scanning Responses . | . . . . . . . . . . . . . . . . . . . . . . . . . Cargo Convoy Interrupts . | . . . . . . . . . . . . . . . . . . . . . . . . . Stealth | -11 -10 -10 -10 -9 -8 -7 -7 -7 -7 -5 -5 -5 -5 -5 -5 -5 -4 -4 -4 -4 -3 -3 -3 -3 --------- Run | Yrd Mat Min Exi Min Mat Fac Sto Rec Scr Fac Was Fac Ext Cet Arc Hub Fac Upp Upp Zhi Pro Res Arm Lab Distress Signals 21 | . 4 . . . 3 4 . . . 3 . . . 2 . 2 2 . . . . 1 . . Communications Jammed . | . . . . . . . . . . . . . . . . . . . . . . . . . Distress Signals . | . . . . . . . . . . . . . . . . . . . . . . . . . Times Spotted 429 | . 21 2 . . 29 41 117 4 35 11 6 4 37 11 10 46 25 9 4 . 3 2 12 . Peak Tracking Total 35 | . 6 2 . . 4 4 15 1 35 2 6 2 6 5 1 16 6 3 4 . 2 3 5 . Tactical Retreats 19 | . 1 . . . . 1 1 . 1 1 . . 1 . . 3 3 4 1 . 1 1 . . Traps | -11 -10 -10 -10 -9 -8 -7 -7 -7 -7 -5 -5 -5 -5 -5 -5 -5 -4 -4 -4 -4 -3 -3 -3 -3 ------- Run | Yrd Mat Min Exi Min Mat Fac Sto Rec Scr Fac Was Fac Ext Cet Arc Hub Fac Upp Upp Zhi Pro Res Arm Lab Traps Triggered 10 | . 1 . . . 1 4 . . . 1 . . 2 . . . . . . . . . 1 . Indirectly . | . . . . . . . . . . . . . . . . . . . . . . . . . Trap Hack Attempts . | . . . . . . . . . . . . . . . . . . . . . . . . . Triggered . | . . . . . . . . . . . . . . . . . . . . . . . . . Disarmed . | . . . . . . . . . . . . . . . . . . . . . . . . . Reprogrammed . | . . . . . . . . . . . . . . . . . . . . . . . . . Reused . | . . . . . . . . . . . . . . . . . . . . . . . . . Traps Extracted . | . . . . . . . . . . . . . . . . . . . . . . . . . Installed . | . . . . . . . . . . . . . . . . . . . . . . . . . Triggered . | . . . . . . . . . . . . . . . . . . . . . . . . . Machines | -11 -10 -10 -10 -9 -8 -7 -7 -7 -7 -5 -5 -5 -5 -5 -5 -5 -4 -4 -4 -4 -3 -3 -3 -3 ---------- Run | Yrd Mat Min Exi Min Mat Fac Sto Rec Scr Fac Was Fac Ext Cet Arc Hub Fac Upp Upp Zhi Pro Res Arm Lab Machines Disabled 55 | . . 1 . . . 8 11 1 3 4 . 2 1 . 5 8 8 . . . . . 3 . Max in Single Turn 4 | . . 1 . . . 2 1 1 1 1 . . . . 1 3 4 . . . . . 1 . Garrison Access 1 | . . . . . . . . . . . . . . . . 1 . . . . . . . . Network Hub 3 | . . . . . . . . . . . . . . . . 3 . . . . . . . . Machines Repaired . | . . . . . . . . . . . . . . . . . . . . . . . . . Machines Dismantled 3 | . . . . . . . 2 . 1 . . . . . . . . . . . . . . . Machines Sabotaged 2 | . . . . . . . . . . . . . . . . 2 . . . . . . . . Overloaded Fab Kills . | . . . . . . . . . . . . . . . . . . . . . . . . . Hacking | -11 -10 -10 -10 -9 -8 -7 -7 -7 -7 -5 -5 -5 -5 -5 -5 -5 -4 -4 -4 -4 -3 -3 -3 -3 --------- Run | Yrd Mat Min Exi Min Mat Fac Sto Rec Scr Fac Was Fac Ext Cet Arc Hub Fac Upp Upp Zhi Pro Res Arm Lab Machines Accessed 94 | . 6 . 2 . 9 12 12 13 . 5 . 4 6 1 . 3 10 . . 4 1 2 4 . Terminals 54 | . 5 . . . 7 7 10 6 . . . 2 6 1 . 3 5 . . . 1 . 1 . Fabricators 7 | . . . . . . 3 . . . 1 . . . . . . 2 . . . . . 1 . Repair Stations 1 | . . . . . . . . . . . . . . . . . . . . . . . 1 . Recycling Units 22 | . 1 . . . 1 1 2 7 . 3 . 2 . . . . 2 . . . . 2 1 . Scanalyzers 4 | . . . . . 1 1 . . . 1 . . . . . . 1 . . . . . . . Garrison Access . | . . . . . . . . . . . . . . . . . . . . . . . . . Total Hacks 252 | . 14 . 3 . 27 17 19 35 . 14 . 12 13 3 . 3 40 . . 16 7 15 14 . Successful 124 | . 8 . 3 . 10 6 6 17 . 5 . 7 6 . . 3 23 . . 16 7 2 5 . Failed 127 | . 6 . . . 16 11 13 18 . 9 . 5 7 3 . . 17 . . . . 13 9 . Catastrophic 25 | . . . . . 1 2 2 3 . 2 . . 2 1 . . 6 . . . . 4 2 . Database Lockouts 1 | . . . . . 1 . . . . . . . . . . . . . . . . . . . Manual 94 | . 9 . 1 . 22 2 3 15 . 3 . 8 . 1 . 3 21 . . . . . 6 . Terminals 144 | . 11 . . . 23 10 16 13 . . . 8 13 3 . 3 31 . . . 7 . 6 . Fabricators 17 | . . . . . . 4 . . . 7 . . . . . . 4 . . . . . 2 . Repair Stations 2 | . . . . . . . . . . . . . . . . . . . . . . . 2 . Recycling Units 61 | . 3 . . . 1 2 3 22 . 5 . 4 . . . . 2 . . . . 15 4 . Scanalyzers 9 | . . . . . 3 1 . . . 2 . . . . . . 3 . . . . . . . Garrison Access . | . . . . . . . . . . . . . . . . . . . . . . . . . Terminal Hacks 62 | . 2 . 3 . 1 2 5 3 . . . 2 6 . . . 14 . . 16 7 . 1 . Record 14 | . . . 2 . . . . . . . . . . . . . . . . 5 7 . . . Part Schematic 5 | . . . . . . 1 1 . . . . . . . . . . . . 3 . . . . Robot Analysis 6 | . 1 . . . . . 1 . . . . . . . . . . . . 4 . . . . Prototype ID Bank 5 | . . . . . . . . . . . . . 1 . . . . . . 4 . . . . Open Door 4 | . . . . . . . 2 . . . . . 2 . . . . . . . . . . . Level Access Points 1 | . . . . . . . . . . . . . . . . . 1 . . . . . . . Branch Access Points 2 | . . . . . . 1 . . . . . . . . . . 1 . . . . . . . Terminal Index 4 | . . . . . . . . . . . . 1 1 . . . 2 . . . . . . . Fabricator Index 2 | . . . . . . . . . . . . . . . . . 1 . . . . . 1 . Recycling Unit Index 1 | . . . . . . . . 1 . . . . . . . . . . . . . . . . Unreport Threat 3 | . . . . . . . . . . . . . . . . . 3 . . . . . . . Locate Traps 1 | . . . . . . . . . . . . . 1 . . . . . . . . . . . Dispatch Records 1 | . . . . . . . . . . . . . . . . . 1 . . . . . . . Maintenance Status 1 | . . . . . . . . . . . . . . . . . 1 . . . . . . . Recall Reinforcements 1 | . . . . . . . . . . . . . . . . . 1 . . . . . . . Hauler Manifests 1 | . . . . . . . . . . . . . . . . . 1 . . . . . . . Registered Components 2 | . . . . . . . . . . . . . 1 . . . 1 . . . . . . . Zone Layout 7 | . 1 . . . 1 . 1 2 . . . 1 . . . . 1 . . . . . . . Proto ID Catalog 1 | . . . 1 . . . . . . . . . . . . . . . . . . . . . Fabricator Hacks 11 | . . . . . . 3 . . . 4 . . . . . . 3 . . . . . 1 . Network Status 2 | . . . . . . 2 . . . . . . . . . . . . . . . . . . Load Schematic 5 | . . . . . . . . . . 2 . . . . . . 2 . . . . . 1 . Build 4 | . . . . . . 1 . . . 2 . . . . . . 1 . . . . . . . Repair Station Hacks 1 | . . . . . . . . . . . . . . . . . . . . . . . 1 . Refit 1 | . . . . . . . . . . . . . . . . . . . . . . . 1 . Recycling Unit Hacks 16 | . 1 . . . 1 . 1 7 . . . 1 . . . . 2 . . . . 2 1 . Retrieve Components 16 | . 1 . . . 1 . 1 7 . . . 1 . . . . 2 . . . . 2 1 . Scanalyzer 6 | . . . . . 2 . . . . 1 . . . . . . 3 . . . . . . . Retrieve Study 6 | . . . . . 2 . . . . 1 . . . . . . 3 . . . . . . . Garrison Access Hacks . | . . . . . . . . . . . . . . . . . . . . . . . . . Unauthorized Hacks 28 | . 5 . . . 6 1 . 7 . . . 4 . . . 3 1 . . . . . 1 . Terminals 21 | . 5 . . . 6 1 . 2 . . . 4 . . . 3 . . . . . . . . Assimilate 1 | . . . . . . 1 . . . . . . . . . . . . . . . . . . Botnet 5 | . 1 . . . 1 . . 1 . . . 2 . . . . . . . . . . . . Skim 12 | . 4 . . . 5 . . 1 . . . 2 . . . . . . . . . . . . Sabotage 3 | . . . . . . . . . . . . . . . . 3 . . . . . . . . Fabricators 2 | . . . . . . . . . . . . . . . . . 1 . . . . . 1 . Recompile 2 | . . . . . . . . . . . . . . . . . 1 . . . . . 1 . Repair Stations . | . . . . . . . . . . . . . . . . . . . . . . . . . Recycling Units 5 | . . . . . . . . 5 . . . . . . . . . . . . . . . . Tunnel 5 | . . . . . . . . 5 . . . . . . . . . . . . . . . . Scanalyzers . | . . . . . . . . . . . . . . . . . . . . . . . . . Garrison Access . | . . . . . . . . . . . . . . . . . . . . . . . . . Data Cores Recovered 2 | . . . . . . . . . . . . 1 . . . . 1 . . . . . . . Used . | . . . . . . . . . . . . . . . . . . . . . . . . . Hacking Detections 60 | . 4 . . . 7 9 7 10 . 5 . 4 3 1 . . 5 . . . 1 2 2 . Full Trace Events 8 | . . . . . . 1 2 2 . . . . 1 1 . . 1 . . . . . . . Feedback Events 1 | . . . . . . . . 1 . . . . . . . . . . . . . . . . Hackware Fried 1 | . . . . . . . . 1 . . . . . . . . . . . . . . . . Feedback Blocked . | . . . . . . . . . . . . . . . . . . . . . . . . . Robot Schematics Acquired . | . . . . . . . . . . . . . . . . . . . . . . . . . Robots Built 2 | . . . . . . 2 . . . . . . . . . . . . . . . . . . Authchips . | . . . . . . . . . . . . . . . . . . . . . . . . . Time 134 | . . . . . . 134 . . . . . . . . . . . . . . . . . . Total Robot Build Rating 8 | . . . . . . 8 . . . . . . . . . . . . . . . . . . Part Schematics Acquired 37 | . . . . . . 1 1 . 1 6 4 1 8 2 . 3 2 . 1 3 1 2 . 1 Parts Built 3 | . . . . . . . . . . 2 . . . . . . 1 . . . . . . . Authchips 2 | . . . . . . . . . . 2 . . . . . . . . . . . . . . Time 228 | . . . . . . . . . . 152 . . . . . . 76 . . . . . . . Total Part Build Rating 15 | . . . . . . . . . . 10 . . . . . . 5 . . . . . . . Part Studies Acquired 6 | . . . . . 2 . . . . 1 . . . . . . 3 . . . . . . . Parts Repaired . | . . . . . . . . . . . . . . . . . . . . . . . . . Time . | . . . . . . . . . . . . . . . . . . . . . . . . . Parts Recycled . | . . . . . . . . . . . . . . . . . . . . . . . . . Recycled Matter . | . . . . . . . . . . . . . . . . . . . . . . . . . Retrieved Matter . | . . . . . . . . . . . . . . . . . . . . . . . . . Retrieved Components 56 | . 1 . . . 10 . 10 17 . . . 3 . . . . 11 . . . . 2 2 . Parts Scanalyzed . | . . . . . . . . . . . . . . . . . . . . . . . . . Part Schematics Acquired . | . . . . . . . . . . . . . . . . . . . . . . . . . Parts Damaged . | . . . . . . . . . . . . . . . . . . . . . . . . . Bothacking | -11 -10 -10 -10 -9 -8 -7 -7 -7 -7 -5 -5 -5 -5 -5 -5 -5 -4 -4 -4 -4 -3 -3 -3 -3 ------------ Run | Yrd Mat Min Exi Min Mat Fac Sto Rec Scr Fac Was Fac Ext Cet Arc Hub Fac Upp Upp Zhi Pro Res Arm Lab Used RIF Installer . | . . . . . . . . . . . . . . . . . . . . . . . . . Robots Hacked 5 | . . . 4 . . . . . . . . 1 . . . . . . . . . . . . Non-combat 3 | . . . 3 . . . . . . . . . . . . . . . . . . . . . Combat 2 | . . . 1 . . . . . . . . 1 . . . . . . . . . . . . Robot Hacks Applied 5 | . . . 4 . . . . . . . . 1 . . . . . . . . . . . . parse_system 5 | . . . 4 . . . . . . . . 1 . . . . . . . . . . . . Relay Couplers Released 5 | . . . . . . 3 . . . . . . . . . 2 . . . . . . . . Machine Destruction 2 | . . . . . . . . . . . . . . . . 2 . . . . . . . . Programmers 3 | . . . . . . 3 . . . . . . . . . . . . . . . . . . Fabnet Peak Effective % . | . . . . . . . . . . . . . . . . . . . . . . . . . Robots Rewired 20 | . . . . . . . . 8 . . . . 12 . . . . . . . . . . . Allies Hacked . | . . . . . . . . . . . . . . . . . . . . . . . . . Hacks Repelled . | . . . . . . . . . . . . . . . . . . . . . . . . . Allies | -11 -10 -10 -10 -9 -8 -7 -7 -7 -7 -5 -5 -5 -5 -5 -5 -5 -4 -4 -4 -4 -3 -3 -3 -3 -------- Run | Yrd Mat Min Exi Min Mat Fac Sto Rec Scr Fac Was Fac Ext Cet Arc Hub Fac Upp Upp Zhi Pro Res Arm Lab Total Allies 111 | . . 1 . 3 . 3 12 8 . 6 19 3 40 5 . 3 3 . . . . 5 . . Largest Group 44 | . . 1 . 3 3 2 10 8 7 5 19 22 44 44 37 35 1 1 . . . 4 3 . Highest-Rated Group 1485 | . . 31 . 40 40 64 187 182 161 50 702 732 1075 1485 1239 1188 10 10 . . . 34 30 . Highest-Rated Ally 159 | . . 31 . 16 16 32 31 40 40 10 50 50 159 159 96 96 10 10 . . . 10 10 . Total Orders 1 | . . . . . . . . . 1 . . . . . . . . . . . . . . . AID 1 | . . . . . . . . . 1 . . . . . . . . . . . . . . . Ally Attacks 782 | . . . . . 25 29 30 14 13 51 4 28 222 89 35 204 7 10 . . . 7 14 . Total Damage 16486 | . . . . . 316 910 346 349 468 582 40 370 5800 1208 442 5253 101 86 . . . 68 147 . Kills 138 | . . . . . 5 8 2 2 5 6 . 6 45 13 3 39 . 2 . . . . 2 . Allies Corrupted 13 | . . . . . . . . . . 1 . . 1 1 . 8 . . . . . . 2 . Allies Melted . | . . . . . . . . . . . . . . . . . . . . . . . . . Intel | -11 -10 -10 -10 -9 -8 -7 -7 -7 -7 -5 -5 -5 -5 -5 -5 -5 -4 -4 -4 -4 -3 -3 -3 -3 ------- Run | Yrd Mat Min Exi Min Mat Fac Sto Rec Scr Fac Was Fac Ext Cet Arc Hub Fac Upp Upp Zhi Pro Res Arm Lab Active Infowar (turns) 7753 | 3 1809 1146 993 714 1608 . . . . . . . . . . . . 268 164 71 104 92 604 177 Structural 2 | . 2 . . . . . . . . . . . . . . . . . . . . . . . Seismic 6271 | 3 1807 1146 993 714 1608 . . . . . . . . . . . . . . . . . . . Decoding 1480 | . . . . . . . . . . . . . . . . . . 268 164 71 104 92 604 177 Robot Analysis Total 6 | . 1 . . . . . 1 . . . . . . . . . . . . 4 . . . . Derelict Logs Recovered 7 | . . 2 . 2 . . . . . . . . . . . . . 3 . . . . . . Drone Launches . | . . . . . . . . . . . . . . . . . . . . . . . . . Drone Recoveries . | . . . . . . . . . . . . . . . . . . . . . . . . . Decoded 0b10 Intel 15 | . . . . . . . . . . . . . . . . . . . . . . 3 12 . Patrols 8 | . . . . . . . . . . . . . . . . . . . . . . 2 6 . Guards 7 | . . . . . . . . . . . . . . . . . . . . . . 1 6 . Exploration | -11 -10 -10 -10 -9 -8 -7 -7 -7 -7 -5 -5 -5 -5 -5 -5 -5 -4 -4 -4 -4 -3 -3 -3 -3 ------------- Run | Yrd Mat Min Exi Min Mat Fac Sto Rec Scr Fac Was Fac Ext Cet Arc Hub Fac Upp Upp Zhi Pro Res Arm Lab Turns Passed 25038 | 98 1810 1146 993 714 2522 2483 5592 1575 1686 454 498 202 1234 580 877 356 681 293 164 71 104 92 604 209 Spaces Moved 14386 | 56 683 467 408 285 965 1019 2043 610 848 818 426 348 1093 385 313 558 779 553 413 142 368 262 412 132 Core 346 | 26 . . . . . . . . . 3 . . . . . . 37 280 . . . . . . Treads 7164 | 30 683 467 408 285 965 1019 2043 610 642 . . . . . . . . . . . . . 12 . Legs 254 | . . . . . . . . . . . . . . . . . . . . . . . 254 . Wheels . | . . . . . . . . . . . . . . . . . . . . . . . . . Hover 230 | . . . . . . . . . . . . . . . . . 230 . . . . . . . Flight 6392 | . . . . . . . . . 206 815 426 348 1093 385 313 558 512 273 413 142 368 262 146 132 Fastest Speed 14 | 50 160 240 240 240 160 203 210 232 29 32 32 32 34 34 34 34 34 29 29 23 14 23 24 42 Average Speed 132 | 108 234 240 240 240 211 206 213 232 186 34 43 34 34 61 76 34 59 40 31 28 22 24 112 42 Slowest Speed 330 | 160 320 240 240 240 330 210 232 232 232 111 109 117 117 114 114 34 290 100 35 32 23 26 250 42 Overloaded Moves 17 | . . . . . . . . . . . . . . . . . . . . . 17 . . . Propulsion Burnouts . | . . . . . . . . . . . . . . . . . . . . . . . . . Robots Hopped 28 | . . . . . . . . . 6 3 2 . 10 . . 3 . . . . . 2 2 . Potential Cave-ins 4 | . . . . . . . . . . . . . . . . . 4 . . . . . . . Cave-ins Triggered 1 | . . . . . . . . . . . . . . 1 . . . . . . . . . . Teleports 1 | . . . . . . . . . . . . . . . . . . . . . . . 1 . Exploration Rate (%) 58 | 4 97 97 70 75 65 27 97 98 55 16 95 10 97 56 90 50 18 60 63 60 55 12 21 85 Regions Visited 24 Branch Regions 16 Pre-discovered Areas 13 | . . . 1 1 3 . . 5 . . . . . . . . . . . 3 . . . . Known Exits Taken 4 | . . . . . . 1 . . . . . . . . . . 1 . . . 1 1 . . Unknown Exits Taken 18 | 1 1 1 1 1 1 . 1 1 1 . . 1 1 1 1 1 . 1 1 1 . . 1 . Scrap Searched 14 | . . 1 . 4 . . . . 2 . . . . . . . . 4 1 . 2 . . . Spaces Dug 252 | . . . . . . . . . . . . . . 7 7 170 68 . . . . . . . Terrain Destroyed 1289 | . . . . . . . 553 . . . 132 . . 50 30 223 290 . . . . . 11 . Melee . | . . . . . . . . . . . . . . . . . . . . . . . . . Projectile 212 | . . . . . . . 19 . . . . . . 50 30 58 48 . . . . . 7 . AOE 1072 | . . . . . . . 534 . . . 132 . . . . 164 242 . . . . . . . Terrain Rammed 33 | . . . . . . . . . . . . . . . . . . . . . . . . 33 Walls Destroyed . | . . . . . . . . . . . . . . . . . . . . . . . . . Machines Disabled . | . . . . . . . . . . . . . . . . . . . . . . . . . Actions | -11 -10 -10 -10 -9 -8 -7 -7 -7 -7 -5 -5 -5 -5 -5 -5 -5 -4 -4 -4 -4 -3 -3 -3 -3 --------- Run | Yrd Mat Min Exi Min Mat Fac Sto Rec Scr Fac Was Fac Ext Cet Arc Hub Fac Upp Upp Zhi Pro Res Arm Lab Total 19045 | 78 804 483 425 315 1315 1233 2834 743 944 953 716 430 1903 685 914 664 937 599 437 168 387 286 503 289 Wait 3072 | . 18 7 . 24 198 66 494 75 35 51 249 47 685 243 563 72 44 17 17 16 8 23 11 109 Move 14314 | 55 682 466 407 284 964 1018 2042 609 836 812 422 347 1075 384 312 553 778 552 412 141 367 257 407 132 Hop 22 | . . . . . . . . . 6 3 1 . 7 . . 1 . . . . . 2 2 . Pick Up 208 | 8 34 1 5 3 30 25 26 9 6 16 5 5 1 9 . 1 8 . . 1 3 . 6 6 Fast Attach 111 | 1 . . . . 2 5 7 . 8 16 3 6 . 5 7 . 12 7 2 7 3 2 18 . Attach 100 | 6 5 . . . 12 5 9 6 9 10 7 1 . 4 . 3 11 1 . 2 2 . 4 3 Detach 29 | . . . . . . . 1 2 . 6 5 2 . . 2 1 5 2 . 1 . . . 2 Swap 87 | . 5 1 3 . 10 11 29 4 4 4 3 2 1 2 2 2 2 . . . . . 2 . Drop 263 | . 12 2 6 3 29 27 28 8 31 8 6 17 2 12 8 . 24 2 . . 3 1 29 5 Fire 640 | 8 48 6 . 1 70 76 178 30 3 27 15 2 23 26 20 31 50 . . . 1 1 24 . Melee 30 | . . . 4 . . . . . . . . 1 1 . . . . 18 6 . . . . . Ram 35 | . . . . . . . . . . . . . . . . . 3 . . . . . . 32 Kick . | . . . . . . . . . . . . . . . . . . . . . . . . . Crush . | . . . . . . . . . . . . . . . . . . . . . . . . . Escape Stasis 30 | . . . . . . . . . . . . . 30 . . . . . . . . . . . Rewire 78 | . . . . . . . . . . . . . 78 . . . . . . . . . . . Trap . | . . . . . . . . . . . . . . . . . . . . . . . . . Miscellaneous 26 | . . . . . . . 20 . 6 . . . . . . . . . . . . . . . Route ------- -11/Scrapyard -10/Materials (discovered 4 exits: [*Mat x3] / [*Min]) -10/Mines (discovered 4 exits: [*Mat x2] / *Exi / Sub) -10/Exiles -9/Mines (discovered 2 exits: *Mat x2) -8/Materials (discovered 2 exits: *Fac x2) -7/Factory (discovered 6 exits: *Fac x2 / *Sto x2 / Low x2) -7/Storage (discovered 2 exits: *Fac / *Rec) -7/Recycling (discovered 2 exits: *Fac / [*Scr]) -7/Scraptown -5/Factory -5/Waste -5/Factory (discovered 2 exits: *Fac / *Ext) -5/Extension (discovered 2 exits: *Fac / *Cet) -5/Cetus (discovered 2 exits: *Fac / [*Arc]) -5/Archives (discovered 3 exits: *Fac / *Hub x2) -5/Hub_04(d) (discovered 2 exits: *Fac x2) -4/Factory (discovered 6 exits: Res x4 / *Upp x2) -4/Upper Caves -4/Upper Caves -4/Zhirov -3/Proximity Caves -3/Research -3/Armory -3/Lab (discovered 1 exit: [*Res]) History --------- Turn | Location | Event 15 | -11/Scrapyard | Discovered new exit (range 15) 99 | -11/Scrapyard | Entered Materials 243 | -10/Materials | Discovered new exit (range 9) 307 | -10/Materials | Build established: Mutant 699 | -10/Materials | Derelicts attacked the area 703 | -10/Materials | Discovered new exit (range 4) 868 | -10/Materials | Discovered new exit (range 12) 1170 | -10/Materials | Discovered new exit (range 11) 1909 | -10/Materials | Entered Mines 2265 | -10/Mines | Identified exit to Subcaves 2295 | -10/Mines | Discovered new exit (range 8) 2604 | -10/Mines | Discovered new exit (range 7) 2607 | -10/Mines | Received a Mining Laser from a helpful Derelict 2847 | -10/Mines | Learned Materials terminal intel 3043 | -10/Mines | Deemed a non-threat by the Exiles lab entrance 3046 | -10/Mines | Discovered new exit (range 5) 3055 | -10/Mines | Entered Exiles 3113 | -10/Exiles | Met 8R-AWN 3159 | -10/Exiles | Met EX-HEX 3228 | -10/Exiles | Met EX-BIN 3328 | -10/Exiles | Learned location of Zion (-6) 3330 | -10/Exiles | Met EX-DEC 3744 | -10/Exiles | Aligned with FarCom system 3747 | -10/Exiles | Given EX-Vault access code 3802 | -10/Exiles | Opened EX-Vault 3817 | -10/Exiles | Found Latent Energy Streamer 3866 | -10/Exiles | Warned to stay clear of 0b10 Research branches 4022 | -10/Exiles | Discovered new exit (range 14) 4048 | -10/Exiles | Left Exiles lab with Latent Energy Streamer 4048 | -10/Exiles | Entered Mines 4076 | -9/Mines | Met a Derelict bent on vengeance 4089 | -9/Mines | Discovered new exit (range 15) 4308 | -9/Mines | Assisted by bots powering up and referring to "LRC-V3" 4395 | -9/Mines | Learned location of Storage (-7) 4506 | -9/Mines | Found a hidden stash of uninstalled traps 4725 | -9/Mines | Discovered new exit (range 10) 4762 | -9/Mines | Entered Materials 4762 | -8/Materials | Accompanied by 3 allies 4762 | -8/Materials | Evolved 4 slots: Propulsion x1, Utility x2, Weapon x1 4763 | -8/Materials | Loaded intel: 9 terminal locations 5009 | -8/Materials | Lost 3 allies 5072 | -8/Materials | Build established: Tank 5258 | -8/Materials | Discovered new exit (range 15) 6322 | -8/Materials | Central database locked down 6488 | -8/Materials | Learned Factory repair station intel 6513 | -8/Materials | Learned Storage trap positions 6523 | -8/Materials | Learned Storage stockpile data 6543 | -8/Materials | Learned location of Lower Caves (-7) 6575 | -8/Materials | Learned 2 Storage zone layouts 7081 | -8/Materials | Discovered new exit (range 3) 7284 | -8/Materials | Entered Factory 7284 | -7/Factory | Evolved 2 slots: Propulsion x1, Weapon x1 7285 | -7/Factory | Identified exit to Storage 7285 | -7/Factory | Identified exit to Lower Caves 7286 | -7/Factory | Loaded intel: 6 repair station locations 7437 | -7/Factory | Allied Derelicts emerged from ambush trap array 7557 | -7/Factory | Fabricated Y-54 Guardian? 7671 | -7/Factory | Garrison activated, responded to threat 7845 | -7/Factory | Garrison activated, responded to threat 8011 | -7/Factory | Discovered new exit (range 7) 8282 | -7/Factory | Garrison activated, responded to threat 8618 | -7/Factory | Identified exit to Factory 9110 | -7/Factory | Discovered exit to Factory (range 16) 9265 | -7/Factory | Build established: Scavenger-Tank 9689 | -7/Factory | Found Prototype Launcher 9689 | -7/Factory | Identified Rocket Array 9703 | -7/Factory | Found Rocket Array 9722 | -7/Factory | Found Rocket Array 9767 | -7/Factory | Entered Storage 9769 | -7/Storage | Loaded intel: 28 trap records 10464 | -7/Storage | Assisted by bots powering up and referring to "LRC-V3" 10626 | -7/Storage | Used back door to open Recycling access 10626 | -7/Storage | Discovered new exit (range 5) 10751 | -7/Storage | Build established: Commander-Tank 11076 | -7/Storage | Met a pair of Derelict thieves 11107 | -7/Storage | Found Rocket Array 11161 | -7/Storage | Lost 9 allies 11166 | -7/Storage | Destroyed 13 combat bots 11433 | -7/Storage | Build established: Scavenger-Tank 11766 | -7/Storage | Build established: Tank 12604 | -7/Storage | System corruption reached 10% 13367 | -7/Storage | First assault squad dispatched 13709 | -7/Storage | Build established: Scavenger-Tank 14361 | -7/Storage | Build established: Tank 14631 | -7/Storage | Destroyed 7 combat bots 15006 | -7/Storage | Destroyed 9 combat bots 15025 | -7/Storage | High security lockdown imminent 15105 | -7/Storage | High security lockdown engaged 15135 | -7/Storage | Sterilization system engaged 15135 | -7/Storage | Non-combat units ordered to evacuate 15174 | -7/Storage | Destroyed 22 combat bots 15235 | -7/Storage | Combat units ordered to evacuate 15359 | -7/Storage | Entered Recycling 15769 | -7/Recycling | Hacking Suite fried by hacking feedback 16153 | -7/Recycling | Discovered new exit (range 8) 16230 | -7/Recycling | Build established: Commander-Tank 16813 | -7/Recycling | Scanned before Scraplab entrance 16848 | -7/Recycling | Entered Scraplab 16866 | -7/Recycling | Discovered new exit (range 3) 16934 | -7/Recycling | Entered Scraptown 16934 | -7/Scraptown | Accompanied by 7 allies 16939 | -7/Scraptown | System corruption cleaned by C-Scrubber 17020 | -7/Scraptown | Visited IN-MT5's Study 17050 | -7/Scraptown | Visited Shadow of the Wyrm 17099 | -7/Scraptown | Build established: Commander-Mutant 17122 | -7/Scraptown | Visited Fellowship of the Rings 17150 | -7/Scraptown | Visited The Evicted 17164 | -7/Scraptown | Visited Awakened 17185 | -7/Scraptown | Visited SPCMW 17218 | -7/Scraptown | Visited Cyclists 17310 | -7/Scraptown | Discovered new exit (range 11) 17387 | -7/Scraptown | Heard Great Nut preacher, LISTEN AND RECITE! 17585 | -7/Scraptown | Build established: Commander-Tank 18567 | -7/Scraptown | Attacked by Scraptown defenders 18600 | -7/Scraptown | Core integrity fell below 50% 18620 | -7/Scraptown | Entered Factory 18620 | -5/Factory | Evolved 4 slots: Propulsion x2, Utility x2 18623 | -5/Factory | Lost 6 allies 18644 | -5/Factory | Lost 9 parts (1p2n3u3w) 18708 | -5/Factory | Fabricated IN-MT5's Pitchfork "Insurrection" (x1) 18724 | -5/Factory | Reprogrammed and armed K-01 Serf 18725 | -5/Factory | Reprogrammed and armed K-01 Serf 18743 | -5/Factory | Tech Extrapolator generated special schematic: Deep Structural Scanner 18754 | -5/Factory | Reprogrammed and armed K-01 Serf 18757 | -5/Factory | Reprogrammed and armed K-01 Serf 18792 | -5/Factory | Fabricated IN-MT5's Pitchfork "Insurrection"? 18833 | -5/Factory | Reprogrammed and armed K-01 Serf 18934 | -5/Factory | Build established: Sprinter 18970 | -5/Factory | Lost 4 allies 19072 | -5/Factory | Reprogrammed and armed K-01 Serf 19074 | -5/Factory | Manually triggered Chute Trap 19074 | -5/Factory | Sucked down chute 19074 | -5/Factory | Entered Waste 19079 | -5/Waste | Found Prototype Launcher 19079 | -5/Waste | Identified Hellfire Missile Launcher 19084 | -5/Waste | 2 allies followed down the chute 19097 | -5/Waste | Spotted C-40 Crusher 19098 | -5/Waste | Spotted C-40 Crusher 19098 | -5/Waste | Spotted C-40 Crusher 19099 | -5/Waste | Spotted C-40 Crusher 19100 | -5/Waste | Spotted C-40 Crusher 19105 | -5/Waste | Spotted C-40 Crusher 19121 | -5/Waste | Destroyed C-40 Crusher 19124 | -5/Waste | Destroyed C-40 Crusher 19124 | -5/Waste | Destroyed C-40 Crusher 19134 | -5/Waste | Destroyed C-40 Crusher 19141 | -5/Waste | Destroyed C-40 Crusher 19171 | -5/Waste | Destroyed C-40 Crusher 19284 | -5/Waste | Discovered new exit (range 13) 19291 | -5/Waste | Warlord forces began an assault 19318 | -5/Waste | Identified exit to Factory 19572 | -5/Waste | Entered Factory 19572 | -5/Factory | Accompanied by 19 allies 19690 | -5/Factory | Reprogrammed and armed K-01 Serf 19692 | -5/Factory | Reprogrammed and armed K-01 Serf 19709 | -5/Factory | Reprogrammed and armed K-01 Serf 19710 | -5/Factory | Discovered new exit (range 8) 19723 | -5/Factory | Discovered new exit (range 15) 19774 | -5/Factory | Entered Extension 19774 | -5/Extension | Accompanied by 22 allies 19831 | -5/Extension | Lost 4 allies 19958 | -5/Extension | Rescued a captive Derelict 19961 | -5/Extension | Rescued a captive Derelict 19967 | -5/Extension | Lost 3 allies 20125 | -5/Extension | Reprogrammed and armed K-01 Serf 20127 | -5/Extension | Reprogrammed and armed K-01 Serf 20132 | -5/Extension | Reprogrammed and armed K-01 Serf 20138 | -5/Extension | Build established: Commander-Skirmisher 20144 | -5/Extension | Reprogrammed and armed K-01 Serf 20186 | -5/Extension | Reprogrammed and armed K-01 Serf 20186 | -5/Extension | Reprogrammed and armed K-01 Serf 20188 | -5/Extension | Reprogrammed and armed K-01 Serf 20190 | -5/Extension | Reprogrammed and armed K-01 Serf 20199 | -5/Extension | Disrupted transfer network 20320 | -5/Extension | Reprogrammed and armed K-01 Serf 20348 | -5/Extension | Reprogrammed and armed K-01 Serf 20351 | -5/Extension | Reprogrammed and armed K-01 Serf 20354 | -5/Extension | Reprogrammed and armed K-01 Serf 20356 | -5/Extension | Reprogrammed and armed K-01 Serf 20356 | -5/Extension | Reprogrammed and armed K-01 Serf 20356 | -5/Extension | Reprogrammed and armed K-01 Serf 20385 | -5/Extension | Reprogrammed and armed K-01 Serf 20385 | -5/Extension | Reprogrammed and armed K-01 Serf 20386 | -5/Extension | Reprogrammed and armed K-01 Serf 20387 | -5/Extension | Reprogrammed and armed K-01 Serf 20409 | -5/Extension | Rescued A7 20645 | -5/Extension | Tech Extrapolator generated special schematic: Energy Deflector 20674 | -5/Extension | First assault squad dispatched 20754 | -5/Extension | Discovered new exit (range 10) 20754 | -5/Extension | Discovered new exit (range 6) 20765 | -5/Extension | Lost 3 allies 20788 | -5/Extension | Reprogrammed and armed K-01 Serf 20789 | -5/Extension | Reprogrammed and armed K-01 Serf 20790 | -5/Extension | Reprogrammed and armed K-01 Serf 20795 | -5/Extension | Reprogrammed and armed K-01 Serf 20797 | -5/Extension | Reprogrammed and armed K-01 Serf 20805 | -5/Extension | Reprogrammed and armed K-01 Serf 21008 | -5/Extension | Entered Cetus 21008 | -5/Cetus | Accompanied by 41 allies (A7) 21008 | -5/Cetus | 2 allies did not survive the journey 21013 | -5/Cetus | Acquired a Cetus Manufacturing Module code from A7 21015 | -5/Cetus | Spotted Cetus Guard 21020 | -5/Cetus | Spotted Cetus Guard 21021 | -5/Cetus | Allies destroyed Cetus Guard 21024 | -5/Cetus | Spotted Cetus Guard 21030 | -5/Cetus | Allies destroyed Cetus Guard 21038 | -5/Cetus | Allies destroyed Cetus Guard 21057 | -5/Cetus | Started Cetus Manufacturing Module 21082 | -5/Cetus | Manufactured an Enhanced Grunt 21092 | -5/Cetus | Discovered new exit (range 16) 21107 | -5/Cetus | Manufactured an Enhanced Grunt 21132 | -5/Cetus | Manufactured an Enhanced Grunt 21134 | -5/Cetus | Spotted Cetus Guard 21147 | -5/Cetus | Spotted Cetus Guard 21148 | -5/Cetus | Spotted Cetus Guard 21157 | -5/Cetus | Manufactured an Enhanced Grunt 21162 | -5/Cetus | Allies destroyed Cetus Guard 21164 | -5/Cetus | Allies destroyed Cetus Guard 21166 | -5/Cetus | Allies destroyed Cetus Guard 21173 | -5/Cetus | Discovered new exit (range 16) 21177 | -5/Cetus | Met Revision 17 21182 | -5/Cetus | Manufactured an Enhanced Grunt 21402 | -5/Cetus | Crushed by falling debris 21441 | -5/Cetus | Murdered A7 21444 | -5/Cetus | Extracted ID and sensor layout for unrecognized location from A7's data core 21472 | -5/Cetus | Lost 3 allies 21588 | -5/Cetus | Entered Archives 21588 | -5/Archives | Accompanied by 37 allies 21646 | -5/Archives | Discovered new exit (range 14) 21713 | -5/Archives | Discovered new exit (range 16) 21837 | -5/Archives | Discovered new exit (range 13) 22465 | -5/Archives | Entered Hub_04(d) 22465 | -5/Hub_04(d) | Accompanied by 35 allies 22500 | -5/Hub_04(d) | Network Hub disabled 22517 | -5/Hub_04(d) | Spotted Lightning 22517 | -5/Hub_04(d) | Garrison activated, responded to threat 22520 | -5/Hub_04(d) | Spotted Lightning 22520 | -5/Hub_04(d) | Spotted Lightning 22546 | -5/Hub_04(d) | Allies destroyed Lightning 22550 | -5/Hub_04(d) | Found Prototype Device 22551 | -5/Hub_04(d) | Identified Exp. EM Shield 22567 | -5/Hub_04(d) | Reprogrammed and armed K-01 Serf 22568 | -5/Hub_04(d) | Reprogrammed and armed K-01 Serf 22571 | -5/Hub_04(d) | Lost 14 allies 22670 | -5/Hub_04(d) | Discovered new exit (range 7) 22724 | -5/Hub_04(d) | Spotted B-75 Beast 22725 | -5/Hub_04(d) | Spotted Lightning 22725 | -5/Hub_04(d) | Spotted Lightning 22725 | -5/Hub_04(d) | Spotted Lightning 22725 | -5/Hub_04(d) | Discovered new exit (range 11) 22744 | -5/Hub_04(d) | Network Hub disabled 22765 | -5/Hub_04(d) | First assault squad dispatched 22785 | -5/Hub_04(d) | Garrison activated, responded to threat 22799 | -5/Hub_04(d) | Network Hub disabled 22799 | -5/Hub_04(d) | High security lockdown imminent 22800 | -5/Hub_04(d) | Lost 3 allies 22819 | -5/Hub_04(d) | Reprogrammed and armed K-01 Serf 22821 | -5/Hub_04(d) | Entered Factory 22821 | -4/Factory | Evolved 2 slots: Propulsion x1, Utility x1 22840 | -4/Factory | Identified exit to Upper Caves 22921 | -4/Factory | Reprogrammed and armed K-01 Serf 22923 | -4/Factory | Found Quantum Capacitor 23006 | -4/Factory | Identified exit to Research 23183 | -4/Factory | Fabricated IN-MT5's Pitchfork "Insurrection" (x1) 23323 | -4/Factory | Reprogrammed and armed K-01 Serf 23412 | -4/Factory | Build established: Hacker-Mutant 23448 | -4/Factory | Found Prototype Launcher 23448 | -4/Factory | Identified Com. Tesla Bomb Launcher 23501 | -4/Factory | Reprogrammed and armed K-01 Serf 23502 | -4/Factory | Entered Upper Caves 23502 | -4/Upper Caves | Accompanied by 1 ally 23523 | -4/Upper Caves | Attracted the attention of an 0b10 checkpoint 23523 | -4/Upper Caves | Lost 5 parts (1n2u2w) 23674 | -4/Upper Caves | Core integrity fell below 50% 23729 | -4/Upper Caves | Discovered new exit (range 15) 23774 | -4/Upper Caves | Learned Research non-interactive machine intel 23784 | -4/Upper Caves | Learned 8 Research zone layouts 23795 | -4/Upper Caves | Entered another Upper Caves area 23832 | -4/Upper Caves | Encountered a Warlord checkpoint 23856 | -4/Upper Caves | Lost 5 parts (1p2n1u1w) 23948 | -4/Upper Caves | Discovered new exit (range 9) 23959 | -4/Upper Caves | Entered Zhirov 23959 | -4/Zhirov | Discovered new exit (range 3) 23965 | -4/Zhirov | Met Zhirov 23971 | -4/Zhirov | Learned location of Quarantine (-2) 23971 | -4/Zhirov | Learned location of Command (-1) 23976 | -4/Zhirov | Zhirov requested help retrieving the SGEMP Prototype 23981 | -4/Zhirov | Found Alien Artifact 23981 | -4/Zhirov | Identified Integrated Dissipator 23981 | -4/Zhirov | Installed Integrated Dissipator, increased core heat dissipation (+20) 24016 | -4/Zhirov | Found Alien Artifact 24030 | -4/Zhirov | Entered Proximity Caves 24094 | -3/Proximity Caves | Learned Factory terminal intel 24094 | -3/Proximity Caves | Learned Extension trap positions 24094 | -3/Proximity Caves | Learned 6 Lower Caves zone layouts 24094 | -3/Proximity Caves | Learned location of 1 exit from Factory 24131 | -3/Proximity Caves | Discovered exit to Research (range 9) 24134 | -3/Proximity Caves | Entered Research 24134 | -3/Research | Evolved 2 slots: Power x1, Utility x1 24135 | -3/Research | Identified exit to Armory 24136 | -3/Research | Loaded intel: 65 non-interactive machine locations 24138 | -3/Research | Build established: Scavenger-Sprinter 24155 | -3/Research | Reprogrammed and armed K-01 Serf 24158 | -3/Research | Tech Extrapolator generated special schematic: Electrostorm Shotgun 24166 | -3/Research | Reprogrammed and armed K-01 Serf 24197 | -3/Research | Reprogrammed and armed K-01 Serf 24198 | -3/Research | Reprogrammed and armed K-01 Serf 24198 | -3/Research | Reprogrammed and armed K-01 Serf 24214 | -3/Research | Tech Extrapolator generated special schematic: Heat Bomb Trap 24226 | -3/Research | Entered Armory 24226 | -3/Armory | Accompanied by 3 allies 24515 | -3/Armory | Build established: Hacker-Tank 24758 | -3/Armory | System corruption reached 10% 24826 | -3/Armory | Identified Transdimensional Reconstructor 24826 | -3/Armory | Warped through subspace to slip node 24826 | -3/Armory | Discovered new exit (range 1) 24830 | -3/Armory | Entered Lab 24832 | -3/Lab | Discovered new exit (range 9) 24838 | -3/Lab | Hidden lab's door opened automatically 24838 | -3/Lab | Sensor layout match revealed 24839 | -3/Lab | Gained access to the hidden lab's interior 24856 | -3/Lab | Lost 9 parts (2p3n3u1w) 24968 | -3/Lab | Found Prototype Hackware 24970 | -3/Lab | Found Prototype Device 24972 | -3/Lab | Found Prototype Energy Gun 24974 | -3/Lab | Found Prototype Energy Gun 24977 | -3/Lab | Identified Tachyon Dispersion Ray (x2) 24990 | -3/Lab | Tech Extrapolator generated special schematic: Telecube 24992 | -3/Lab | Found Alien Artifact 25014 | -3/Lab | Core integrity fell below 50% 25021 | -3/Lab | System corruption reached 30% 25031 | -3/Lab | Core integrity fell below 20% 25039 | -3/Lab | Core destroyed Last Messages --------------- 25030_ Slammed into Wall. 25030_ Destabilizing: Core damaged (-52). 25031_ Slammed into Wall. 25032_ System corrupted: Substantial component data lost. 25032_ Slammed into Wall. 25032_ Destabilizing: System corrupted (+1). 25032_ Destabilizing: Core damaged (-26). 25033_ Slammed into Wall. 25033_ Destabilizing: Core damaged (-52). 25033_ Destabilizing: System corrupted (+2). 25034_ Slammed into Wall. 25034_ Destabilizing: Core damaged (-26). 25035_ Slammed into Wall. 25035_ Broken Tech Extrapolator destroyed. 25035_ System corrupted by crushing effect (+3). 25035_ Destabilizing: System corrupted (+1). 25036_ Slammed into Wall. 25038_ Destabilizing: Core damaged (-65). 25039_ Slammed into Wall. 25039_ Destabilizing: Core damaged (-39). Map ----- +----------------------------------------------------+ | | | | | | | | | | | | | | | ??????????????????????????????? | | ??????????????????????????????? | | ########??????????????????????? | | """""" #??????????????????????? | | """""""#??????????????????????? | | ""!""!"#####??????????????????? | | """""""" #??????????????????? | | "#??????????????????? | | ""#??????????????????? | | ""#??????????????????? | | [ ""#??????????????????? | | "#??????????????????? | | ""#??????????????????? | | ""#??????????????????? | | ""#??????????????????? | | "#####??????????????? | | A""""??????????????? | | #######?????#####??? | | #####<####### @ #??? | | ! #??? | | #A########### ! #??? | | "###?????????#####??? | | """""" "#??????????????????? | | #####" "#??????????????????? | | #???#" "#??????????????????? | | #???#" "#??????????????????? | | #???#" "#??????????????????? | | #???#" "#??????????????????? | | "???"" ""??????????????????? | | ??? "???????????????????? | | ??? "???????????????????? | | ?? "???????????????????? | | ??? """"????????????????????? | | ""????????????????????????????? | | ??????????????????????????????? | | ??????????????????????????????? | | ??????????????????????????????? | | ??????????????????????????????? | | ??????????????????????????????? | | ??????????????????????????????? | | ??????????????????????????????? | | ??????????????????????????????? | | ??????????????????????????????? | +----------------------------------------------------+ Best States ------------- Heat Dissipation 85 Energy Generation 45 Energy Capacity 780 Matter Stores 300 Matter Capacity 300 Sight Range 16 Terrain Scan Density 10 Armor Coverage 375 Resistance: KI 30 Resistance: TH 15 Resistance: EM 75 Weapon Cycling 20 Melee Speed Boost 20 Phase Shifting 5 Evasion (%) 69 Melee Accuracy 8 Core Analysis 6 Recoil Reduction 4 Particle Charging 30 Offensive Hacking 38 Defensive Hacking 14 Authchip Count 2 Item Schematics ----------------- Weapon Cycler | -7/Factory | Hacked Nuclear Pulse Array | -7/Storage | Hacked IN-MT5's Pitchfork "Insurrection" | -7/Scraptown | Archive Mak. Coolant Network | -5/Factory | Extrapolated Deep Structural Scanner | -5/Factory | Extrapolated Spk. Medium Treads | -5/Factory | Extrapolated 0b10 Decoder Chip [Skirmisher] | -5/Factory | Extrapolated 0b10 Decoder Chip [Generic] | -5/Factory | Extrapolated 0b10 Decoder Chip [Scout] | -5/Factory | Extrapolated Mak. Core Shielding | -5/Waste | Extrapolated Spk. Heavy Treads | -5/Waste | Extrapolated Mak. Medium Armor Plating | -5/Waste | Extrapolated Mak. Ablative Armor | -5/Waste | Extrapolated Mak. System Restoration Module | -5/Factory | Extrapolated Spk. Treads | -5/Extension | Extrapolated Hvy. Beamcaster | -5/Extension | Extrapolated Hvy. Battle Rifle | -5/Extension | Extrapolated Mak. Hacking Suite | -5/Extension | Extrapolated Mak. System Shield | -5/Extension | Extrapolated Mak. Thermal Plating | -5/Extension | Extrapolated Energy Deflector | -5/Extension | Extrapolated Mak. Propulsion Shielding | -5/Extension | Extrapolated Beamcaster | -5/Cetus | Extrapolated Tactical Coordination Suite | -5/Cetus | Extrapolated Slug Cannon | -5/Hub_04(d) | Extrapolated Mak. Targeting Computer | -5/Hub_04(d) | Extrapolated Mak. Salvage Targeting Computer | -5/Hub_04(d) | Extrapolated Mak. Trap Scanner | -4/Factory | Extrapolated Mak. Hammer | -4/Factory | Extrapolated Imp. Arc Thrower | -4/Upper Caves | Extrapolated Assault Drone Bay | -4/Zhirov | Free Exp. Heat Sink | -4/Zhirov | Free Exp. Optical Array | -4/Zhirov | Free Plasma Flamer | -3/Proximity Caves | Extrapolated Electrostorm Shotgun | -3/Research | Extrapolated Heat Bomb Trap | -3/Research | Extrapolated Telecube | -3/Lab | Extrapolated Robot Schematics ------------------ None Fabricated ------------ Y-54 Guardian | x2 | -7/Factory | Preloaded IN-MT5's Pitchfork "Insurrection" | x1 | -5/Factory | Authchip IN-MT5's Pitchfork "Insurrection" | x1 | -5/Factory | Authchip IN-MT5's Pitchfork "Insurrection" | x1 | -4/Factory Repaired ---------- Nothing Studied --------- Arm. Treads | -8/Materials | Hacked Adv. Treads | -8/Materials | Hacked Nuclear Pulse Array | -5/Factory | Hacked Lgt. Particle Reactor | -4/Factory | Hacked Lgt. Angular Momentum Engine | -4/Factory | Hacked Imp. Linear Gravjet | -4/Factory | Hacked Alien Tech Used ----------------- Integrated Dissipator Transdimensional Reconstructor Achievements -------------- Peasant Uprising Challenges ------------ None Game ------ Seed TractorWeightLauncher Manual? 0 Play Time 03:00:16 Cumulative 617.4 hours Start 2025.12.12 @ 01:59:45 End 2025.12.12 @ 05:55:40 Sessions 2 Manual Loads 0 Difficulty Rogue Special Mode None Game No. 783 Rogue 783 Adventurer 0 Explorer 0 Win Type - Total 22 Types 10/1/3/2/2/0/2/2/0/0 Lore% 94 Gallery% 91 Achievement% 79 Wizard Run 0 Options --------- Layout 0 ASCII 0 Keyboard 0 Movement Mouse Keybinds 0 Fullscreen 1 Font 24/Terminus Map View 76x50 Zoom Use 0% Tactical HUD 1 Map Filters NONE Filters NONE Steam 1 RUN: 25d4acc4-fbdb-4176-a9e6-be14084f9f94